bitfinex-derivatives/quotes_BTCF0:USTF0_20241029
["timestamp","ask_amount","ask_price","bid_price","bid_amount"]
[1730199021107,0.07234382,71249.0,71248.0,0.52553977]
[1730199024011,0.07021,71256.0,71255.0,0.070208]
[1730199024213,0.0303,71269.0,71255.0,0.49293177]
[1730199024214,0.070196,71269.0,71255.0,0.49293177]
[1730199024415,0.07032882,71264.0,71263.0,0.3608]
[1730199024609,0.07032882,71264.0,71263.0,0.42303546]
[1730199025811,0.07032882,71264.0,71263.0,0.49323646]
[1730199026912,0.07132882,71264.0,71263.0,0.49523646]
[1730199027117,0.07232882,71264.0,71263.0,0.49623646]
[1730199028229,0.07232882,71264.0,71263.0,0.49723646]
[1730199028516,0.07232882,71264.0,71263.0,0.49823646]
[1730199029219,0.07232882,71264.0,71263.0,0.53103646]
[1730199030008,0.13425259,71264.0,71263.0,0.43631269]
[1730199030218,0.13425259,71264.0,71263.0,0.00531169]
[1730199030410,0.13225259,71264.0,71263.0,0.00031169]
[1730199030610,0.13425259,71264.0,71263.0,0.00331169]
[1730199032517,0.61713636,71264.0,71263.0,0.00331169]
[1730199032718,0.070208,71256.0,71255.0,0.00031169]
[1730199032911,0.19405554,71256.0,71255.0,0.00031169]
[1730199033417,0.25565554,71256.0,71255.0,0.00031169]
[1730199033615,0.070216,71248.0,71247.0,0.3608]
[1730199033816,0.13213977,71248.0,71247.0,0.3608]
[1730199034014,0.13226872,71248.0,71247.0,0.3608]
[1730199034731,0.13326872,71248.0,71247.0,0.3628]
[1730199035107,0.13426872,71248.0,71247.0,0.3628]
[1730199036018,0.13426872,71248.0,71247.0,0.002]
[1730199036207,0.1686605,71248.0,71247.0,0.002]
[1730199037825,0.19410468,71248.0,71247.0,0.002]
[1730199043824,0.16865938,71248.0,71247.0,0.002]
[1730199044226,0.13426872,71248.0,71247.0,0.002]
[1730199051327,0.16865926,71248.0,71247.0,0.002]
[1730199056827,0.16865947,71248.0,71247.0,0.002]
[1730199059431,0.13426872,71248.0,71247.0,0.002]
[1730199062336,0.55699249,71248.0,71247.0,0.002]
[1730199063135,0.55699249,71248.0,71241.0,0.05617994]
[1730199063136,0.55699249,71248.0,71241.0,0.04213458]
[1730199063342,0.48464754,71242.0,71236.0,0.05617994]
[1730199063541,0.48464754,71242.0,71232.0,0.05617994]
[1730199063542,0.07023,71233.0,71232.0,0.05617994]
[1730199063739,0.22419377,71233.0,71232.0,0.05617994]
[1730199064437,0.22419377,71233.0,71231.0,0.05617994]
[1730199064438,0.15409272,71233.0,71231.0,0.05617994]
[1730199064632,0.070231,71232.0,71230.0,0.05828534]
[1730199064833,0.07035995,71232.0,71230.0,0.05828534]
[1730199065032,0.00012895,71231.0,71230.0,0.05828534]
[1730199065332,0.07036095,71231.0,71230.0,0.05828534]
[1730199065639,0.07036095,71231.0,71230.0,0.0021054]
[1730199065943,0.07036095,71231.0,71230.0,0.05820347]
[1730199066342,0.07036095,71231.0,71230.0,0.0021054]
[1730199067043,0.07136095,71231.0,71230.0,0.0021054]
[1730199067636,0.07236095,71231.0,71230.0,0.0021054]
[1730199074242,0.16444095,71231.0,71230.0,0.05815148]
[1730199074443,0.16444095,71231.0,71230.0,0.0021054]
[1730199075239,0.07236095,71231.0,71230.0,0.0021054]
[1730199075546,0.07236095,71231.0,71230.0,0.13426217]
[1730199076236,0.00212895,71231.0,71230.0,0.13426217]
[1730199076438,0.07236095,71231.0,71230.0,0.13426217]
[1730199076646,0.00212895,71231.0,71230.0,0.13426217]
[1730199077644,0.07236095,71231.0,71230.0,0.13426217]
[1730199079349,0.13428472,71231.0,71230.0,0.13426217]
[1730199079546,0.07236095,71231.0,71230.0,0.13426217]
[1730199081441,0.07236095,71231.0,71230.0,0.23307602]
[1730199085449,0.00012895,71232.0,71230.0,0.23307602]
[1730199085651,0.07035995,71232.0,71231.0,0.52984585]
[1730199085854,0.07035995,71232.0,71231.0,0.56204585]
[1730199086854,0.07035995,71232.0,71231.0,0.49181385]
[1730199087559,0.07035995,71232.0,71231.0,0.49281385]
[1730199087560,0.07135995,71232.0,71231.0,0.49281385]
[1730199088052,0.07235995,71232.0,71231.0,0.49281385]
[1730199088552,0.07235995,71232.0,71231.0,0.56304585]
[1730199088950,0.07235995,71232.0,71231.0,0.5630326]
[1730199089352,0.07235995,71232.0,71231.0,0.63315617]
[1730199089653,0.07235995,71232.0,71231.0,0.5949326]
[1730199091756,0.00212895,71232.0,71231.0,0.5949326]
[1730199095754,0.00212895,71232.0,71231.0,0.67901525]
[1730199095963,0.00212895,71232.0,71231.0,0.5949326]
[1730199096356,0.00212895,71232.0,71231.0,0.496132]
[1730199102554,0.13428372,71232.0,71231.0,0.432032]
[1730199103166,0.16867877,71232.0,71231.0,0.432032]
[1730199103460,0.16867876,71232.0,71231.0,0.432032]
[1730199103855,0.13428372,71232.0,71231.0,0.432032]
[1730199104161,0.07235995,71232.0,71231.0,0.432032]
[1730199105358,0.03019399,71232.0,71231.0,0.78555393]
[1730199105568,0.00012895,71233.0,71231.0,0.78555393]
[1730199105763,0.070231,71232.0,71231.0,0.432032]
[1730199105960,0.07035962,71232.0,71231.0,0.78547421]
[1730199107861,0.07035962,71232.0,71231.0,0.78647421]
[1730199108464,0.07135962,71232.0,71231.0,0.78520759]
[1730199108668,0.07235962,71232.0,71231.0,0.88350545]
[1730199108861,0.07235962,71232.0,71231.0,0.78520759]
[1730199109663,0.07235962,71232.0,71231.0,0.64785893]
[1730199110170,0.07235962,71232.0,71231.0,0.74616241]
[1730199110371,0.07235962,71232.0,71231.0,0.88174029]
[1730199110671,0.07235962,71232.0,71231.0,0.78343681]
[1730199111163,0.10675377,71232.0,71231.0,0.433032]
[1730199112378,0.07235962,71232.0,71231.0,0.072232]
[1730199112578,0.07235962,71232.0,71231.0,0.433032]
[1730199116075,0.10675377,71232.0,71231.0,0.433032]
[1730199116474,0.07235962,71232.0,71231.0,0.433032]
[1730199119387,0.07235962,71232.0,71231.0,0.53100406]
[1730199119972,0.00212862,71232.0,71231.0,0.53100406]
[1730199120276,0.00212862,71232.0,71231.0,0.61526545]
[1730199120579,0.07235962,71232.0,71231.0,0.61526545]
[1730199121780,0.07235962,71232.0,71231.0,0.67718922]
[1730199122281,0.07235962,71232.0,71231.0,0.59292783]
[1730199122486,0.00212862,71232.0,71231.0,0.59292783]
[1730199122875,0.00212862,71232.0,71231.0,0.5930505]
[1730199123186,0.07235962,71232.0,71231.0,0.5930505]
[1730199123380,0.07235962,71232.0,71231.0,0.71005897]
[1730199124379,0.07235962,71232.0,71231.0,0.71014363]
[1730199126093,0.00212862,71232.0,71231.0,0.71014363]
[1730199126285,0.00212862,71232.0,71231.0,0.49495577]
[1730199126876,0.02563823,71237.0,71236.0,0.070227]
[1730199127077,0.09586623,71237.0,71236.0,0.070227]
[1730199127388,0.09599453,71237.0,71236.0,0.07053878]
[1730199128581,0.09699453,71237.0,71236.0,0.07353878]
[1730199129181,0.09799453,71237.0,71236.0,0.07453878]
[1730199130077,0.09799453,71237.0,71236.0,0.00431178]
[1730199132383,0.09799453,71237.0,71236.0,0.07453878]
[1730199134388,0.09799453,71237.0,71236.0,0.289883]
[1730199135488,0.09799453,71237.0,71236.0,0.10255447]
[1730199137901,0.09799453,71237.0,71236.0,0.18686231]
[1730199138197,0.09799453,71237.0,71236.0,0.10255447]
[1730199139097,0.09799453,71237.0,71236.0,0.21966449]
[1730199141392,0.09799453,71237.0,71236.0,0.00431178]
[1730199143499,0.09799453,71237.0,71236.0,0.07453878]
[1730199148803,0.09799453,71237.0,71236.0,0.00431178]
[1730199149393,0.09799453,71237.0,71236.0,0.21967826]
[1730199153201,0.09799453,71237.0,71236.0,0.58047826]
[1730199153405,0.09799453,71237.0,71236.0,0.21967826]
[1730199156303,0.09799453,71237.0,71236.0,0.00431178]
[1730199156908,0.1599183,71237.0,71236.0,0.00431178]
[1730199157308,0.09799453,71237.0,71236.0,0.00431178]
[1730199158103,0.1599183,71237.0,71236.0,0.00431178]
[1730199164509,0.19431467,71237.0,71236.0,0.00431178]
[1730199165519,0.1599183,71237.0,71236.0,0.00431178]
[1730199170814,0.09799453,71237.0,71236.0,0.00431178]
[1730199171514,0.09799453,71237.0,71236.0,0.10221076]
[1730199173615,0.1599183,71237.0,71236.0,0.10221076]
[1730199175812,0.1599183,71237.0,71236.0,0.00431178]
[1730199176021,0.09799453,71237.0,71236.0,0.10220081]
[1730199176213,0.1599183,71237.0,71236.0,0.10220081]
[1730199176415,0.1599183,71237.0,71236.0,0.18647119]
[1730199177318,0.09799453,71237.0,71236.0,0.18647119]
[1730199177823,0.09799453,71237.0,71236.0,0.21807119]
[1730199178214,0.09799453,71237.0,71236.0,0.13380081]
[1730199179518,0.09799453,71237.0,71236.0,0.03591178]
[1730199181410,0.09799453,71237.0,71236.0,0.10615194]
[1730199181922,0.09799453,71237.0,71236.0,0.20445852]
[1730199182112,0.09799453,71237.0,71236.0,0.13421836]
[1730199182309,0.09799453,71237.0,71236.0,0.20447904]
[1730199184422,0.09799453,71237.0,71236.0,0.20458658]
[1730199185020,0.09786558,71237.0,71236.0,0.20458658]
[1730199185420,0.09786558,71237.0,71236.0,0.10617246]
[1730199185728,0.09786558,71237.0,71236.0,0.20491826]
[1730199186521,0.17537578,71237.0,71236.0,0.03591178]
[1730199187327,0.13226209,71237.0,71236.0,0.03591178]
[1730199188023,0.17537593,71237.0,71236.0,0.03591178]
[1730199188923,0.17537607,71237.0,71236.0,0.03591178]
[1730199189830,0.17537607,71237.0,71236.0,0.00431178]
[1730199192330,0.23729984,71237.0,71236.0,0.00431178]
[1730199193934,0.28767803,71237.0,71236.0,0.00431178]
[1730199194625,0.15978935,71237.0,71236.0,0.21993826]
[1730199195330,0.15978935,71237.0,71236.0,0.10268324]
[1730199196130,0.15978935,71237.0,71236.0,0.21978066]
[1730199196734,0.15978935,71237.0,71236.0,0.10268324]
[1730199198027,0.15978935,71237.0,71236.0,0.18698487]
[1730199198437,0.15978935,71237.0,71236.0,0.10268324]
[1730199198739,0.09786558,71237.0,71236.0,0.10248767]
[1730199198932,0.15978935,71237.0,71236.0,0.10248767]
[1730199199640,0.15978935,71237.0,71236.0,0.1867708]
[1730199200423,0.15978935,71237.0,71236.0,0.10248767]
[1730199201635,0.15978935,71237.0,71236.0,0.00431178]
[1730199201636,0.1941871,71237.0,71236.0,0.00431178]
[1730199203240,0.23730235,71237.0,71236.0,0.00431178]
[1730199205426,0.2861071,71237.0,71236.0,0.00431178]
[1730199206127,0.22418333,71237.0,71236.0,0.00431178]
[1730199206338,0.2861071,71237.0,71236.0,0.00431178]
[1730199207731,0.1941871,71237.0,71236.0,0.00431178]
[1730199209736,0.15978935,71237.0,71236.0,0.06049428]
[1730199209937,0.15978935,71237.0,71236.0,0.00431178]
[1730199216643,0.23730052,71237.0,71236.0,0.00431178]
[1730199217851,0.23630052,71237.0,71236.0,0.00331178]
[1730199218046,0.23730052,71237.0,71236.0,0.00431178]
[1730199219743,0.23630052,71237.0,71236.0,0.00131178]
[1730199219951,0.23730052,71237.0,71236.0,0.00431178]
[1730199220842,0.17537675,71237.0,71236.0,0.00431178]
[1730199221053,0.23730052,71237.0,71236.0,0.00431178]
[1730199222652,0.23730072,71237.0,71236.0,0.00431178]
[1730199223758,0.15978935,71237.0,71236.0,0.00431178]
[1730199227562,0.09786558,71237.0,71236.0,0.00431178]
[1730199231957,0.15878935,71237.0,71236.0,0.00331178]
[1730199232157,0.15878935,71237.0,71236.0,0.00431178]
[1730199232354,0.15778935,71237.0,71236.0,0.00131178]
[1730199232556,0.15778935,71237.0,71236.0,0.00431178]
[1730199232757,0.19218658,71237.0,71236.0,0.00431178]
[1730199234259,0.23530123,71237.0,71236.0,0.00431178]
[1730199235464,0.17337746,71237.0,71236.0,0.00431178]
[1730199235663,0.19218658,71237.0,71236.0,0.00431178]
[1730199235854,0.23530111,71237.0,71236.0,0.00431178]
[1730199236856,0.19218658,71237.0,71236.0,0.00431178]
[1730199237466,0.23530101,71237.0,71236.0,0.00431178]
[1730199239568,0.15778935,71237.0,71236.0,0.00431178]
[1730199242873,0.09586558,71237.0,71236.0,0.00431178]
[1730199243364,0.15778935,71237.0,71236.0,0.00431178]
[1730199245568,0.09586558,71237.0,71236.0,0.17445304]
[1730199245766,0.09586558,71237.0,71236.0,0.10422143]
[1730199246477,0.070223,71241.0,71240.0,0.070223]
[1730199246768,0.070223,71241.0,71240.0,0.17044482]
[1730199246769,0.07035114,71241.0,71240.0,0.17044482]
[1730199247173,0.07035114,71241.0,71240.0,0.23164482]
[1730199248578,0.07135114,71241.0,71240.0,0.23164482]
[1730199248775,0.00112814,71241.0,71240.0,0.23164482]
[1730199249076,0.07135014,71241.0,71240.0,0.23164482]
[1730199249577,0.07135014,71241.0,71240.0,0.23128379]
[1730199249769,0.07235014,71241.0,71240.0,0.23128379]
[1730199249969,0.07135014,71241.0,71240.0,0.23128379]
[1730199250376,0.07035014,71241.0,71240.0,0.23128379]
[1730199251668,0.07035014,71241.0,71240.0,0.30142558]
[1730199252176,0.07035014,71241.0,71240.0,0.20187696]
[1730199254477,0.07035014,71241.0,71240.0,0.13173517]
[1730199261083,0.10474229,71241.0,71240.0,0.13173517]
[1730199261687,0.07035014,71241.0,71240.0,0.23060458]
[1730199269681,0.07035014,71241.0,71240.0,0.34842561]
[1730199269989,0.07035014,71241.0,71240.0,0.23060458]
[1730199270186,0.07035014,71241.0,71240.0,0.34849641]
[1730199270590,0.07035014,71241.0,71240.0,0.09918158]
[1730199270795,0.19419768,71241.0,71240.0,0.18335052]
[1730199271096,0.13227391,71241.0,71240.0,0.09918158]
[1730199272489,0.07035014,71241.0,71240.0,0.09918158]
[1730199276697,0.07035014,71241.0,71240.0,0.00031217]
[1730199284687,0.07035014,71241.0,71240.0,0.0705099]
[1730199285603,0.07035014,71241.0,71240.0,0.00031217]
[1730199287699,0.07035014,71241.0,71240.0,0.1407329]
[1730199287904,0.07035014,71241.0,71240.0,0.00031217]
[1730199288198,0.07035014,71241.0,71240.0,0.0705099]
[1730199288405,0.07035014,71241.0,71240.0,0.00031217]
[1730199289202,0.07035014,71241.0,71240.0,0.0705099]
[1730199290395,0.07035014,71241.0,71240.0,0.1407329]
[1730199290597,0.07035014,71241.0,71240.0,0.0705099]
[1730199290793,0.07035014,71241.0,71240.0,0.1407329]
[1730199291292,0.07035014,71241.0,71240.0,0.16913048]
[1730199291493,0.070217,71247.0,71240.0,0.16913048]
[1730199291696,0.070217,71247.0,71246.0,0.13214077]
[1730199291899,0.10460766,71247.0,71246.0,0.13245294]
[1730199292601,0.147714,71247.0,71246.0,0.06223594]
[1730199292801,0.159714,71247.0,71246.0,0.00031217]
[1730199293103,0.22163777,71247.0,71246.0,0.00031217]
[1730199293403,0.21563777,71247.0,71246.0,0.00031217]
[1730199293604,0.22163777,71247.0,71246.0,0.00031217]
[1730199294303,0.17253143,71247.0,71246.0,0.00031217]
[1730199294500,0.17853143,71247.0,71246.0,0.00031217]
[1730199296309,0.17853143,71247.0,71246.0,0.07052917]
[1730199297506,0.17853143,71247.0,71246.0,0.00031217]
[1730199299704,0.14414077,71247.0,71246.0,0.00031217]
[1730199303204,0.14414077,71247.0,71246.0,0.04241254]
[1730199303404,0.66142077,71247.0,71246.0,0.00031217]
[1730199304611,0.24034077,71247.0,71246.0,0.00031217]
[1730199306902,0.31784374,71247.0,71246.0,0.00031217]
[1730199310518,0.27473407,71247.0,71246.0,0.00031217]
[1730199311312,0.24034077,71247.0,71246.0,0.00031217]
[1730199313017,0.27473396,71247.0,71246.0,0.00031217]
[1730199313619,0.31784437,71247.0,71246.0,0.00031217]
[1730199314823,0.24034077,71247.0,71246.0,0.00031217]
[1730199317019,0.30066077,71247.0,71246.0,0.00031217]
[1730199317213,0.23586077,71247.0,71246.0,0.00031217]
[1730199318417,0.14414077,71247.0,71246.0,0.00031217]
[1730199321823,0.22164509,71247.0,71246.0,0.00031217]
[1730199323026,0.15972132,71247.0,71246.0,0.00031217]
[1730199323328,0.22164509,71247.0,71246.0,0.00031217]
[1730199323714,0.14414077,71247.0,71246.0,0.00031217]
[1730199324013,0.22164509,71247.0,71246.0,0.00031217]
[1730199324217,0.17853467,71247.0,71246.0,0.00031217]
[1730199325626,0.53933467,71247.0,71246.0,0.00031217]
[1730199326030,0.17853467,71247.0,71246.0,0.00031217]
[1730199326230,0.53933467,71247.0,71246.0,0.00031217]
[1730199328531,0.58244664,71247.0,71246.0,0.00031217]
[1730199328835,0.58244793,71247.0,71246.0,0.00031217]
[1730199329129,0.50494077,71247.0,71246.0,0.00031217]
[1730199333652,0.443017,71247.0,71246.0,0.00031217]
[1730199333935,0.50494077,71247.0,71246.0,0.00031217]
[1730199335327,0.59666077,71247.0,71246.0,0.00031217]
[1730199337628,0.65858454,71247.0,71246.0,0.00031217]
[1730199337830,0.72288454,71247.0,71246.0,0.00031217]
[1730199338432,1.14396454,71247.0,71246.0,1.7e-07]
[1730199338632,0.070224,71239.0,71228.0,0.05614032]
[1730199338834,0.55488154,71229.0,71228.0,0.05614032]
[1730199339137,0.070236,71227.0,71224.0,0.05614032]
[1730199339441,0.07036519,71227.0,71224.0,0.05614032]
[1730199340236,0.07036519,71227.0,71223.0,0.05614032]
[1730199340629,0.13228896,71227.0,71223.0,0.05614032]
[1730199340936,0.13328896,71227.0,71226.0,0.00310568]
[1730199341238,0.13428896,71227.0,71226.0,0.00610568]
[1730199341444,0.13428896,71227.0,71226.0,0.004]
[1730199342633,0.55548896,71227.0,71226.0,0.004]
[1730199343032,0.58092699,71227.0,71226.0,0.004]
[1730199348541,0.67260699,71227.0,71226.0,0.004]
[1730199348927,0.25140699,71227.0,71226.0,0.004]
[1730199349243,0.67260699,71227.0,71226.0,0.004]
[1730199349535,0.25140699,71227.0,71226.0,0.004]
[1730199353037,0.09780322,71227.0,71226.0,0.004]
[1730199353232,0.09780322,71227.0,71226.0,0.0347]
[1730199353429,0.09780322,71227.0,71226.0,0.0661]
[1730199354343,0.09780322,71227.0,71226.0,0.12802377]
[1730199355439,0.09780322,71227.0,71226.0,0.18416409]
[1730199357541,0.09780322,71227.0,71226.0,0.12224032]
[1730199358134,0.07236519,71227.0,71226.0,0.0661]
[1730199364241,0.07236519,71227.0,71226.0,0.12209593]
[1730199364749,0.07236519,71227.0,71226.0,0.0661]
[1730199365047,0.07236519,71227.0,71226.0,0.12209593]
[1730199365442,0.07236519,71227.0,71226.0,0.0661]
[1730199366948,0.10676823,71227.0,71226.0,0.0661]
[1730199367555,0.10676823,71227.0,71226.0,0.12802377]
[1730199367850,0.10676823,71227.0,71226.0,0.0661]
[1730199368050,0.14989007,71227.0,71226.0,0.0661]
[1730199368760,0.14988996,71227.0,71226.0,0.12802377]
[1730199369856,0.03653223,71227.0,71226.0,0.19826077]
[1730199370061,0.070232,71231.0,71230.0,0.070232]
[1730199370450,0.07036087,71231.0,71230.0,0.070232]
[1730199371261,0.07136087,71231.0,71230.0,0.073232]
[1730199371560,0.07236087,71231.0,71230.0,0.074232]
[1730199372452,0.07236087,71231.0,71230.0,0.13615577]
[1730199373857,0.10675999,71231.0,71230.0,0.13615577]
[1730199374061,0.07236087,71231.0,71230.0,0.13615577]
[1730199375750,0.07236087,71231.0,71230.0,0.074232]
[1730199376060,0.13428464,71231.0,71230.0,0.074232]
[1730199377458,0.13428464,71231.0,71230.0,0.004]
[1730199384253,0.49508464,71231.0,71230.0,0.004]
[1730199387359,0.55998464,71231.0,71230.0,0.004]
[1730199397163,0.56118716,71231.0,71230.0,0.004]
[1730199397966,0.51068374,71231.0,71230.0,0.06592377]
[1730199398171,0.46756339,71231.0,71230.0,0.004]
[1730199404162,0.43316087,71231.0,71230.0,0.004]
[1730199414980,0.46756231,71231.0,71230.0,0.004]
[1730199418380,0.10676231,71231.0,71230.0,0.004]
[1730199418681,0.46756231,71231.0,71230.0,0.004]
[1730199419283,0.43316087,71231.0,71230.0,0.10230532]
[1730199419585,0.07236087,71231.0,71230.0,0.10230532]
[1730199419789,0.43316087,71231.0,71230.0,0.10230532]
[1730199426986,0.43316087,71231.0,71230.0,0.10220428]
[1730199427188,0.43316087,71231.0,71230.0,0.004]
[1730199431596,0.43316087,71231.0,71230.0,0.0357]
[1730199434398,0.51067801,71231.0,71230.0,0.0357]
[1730199435994,0.46756046,71231.0,71230.0,0.0357]
[1730199436393,0.39732846,71231.0,71230.0,0.0357]
[1730199436697,0.39732846,71231.0,71230.0,0.105933]
[1730199437794,0.44044496,71231.0,71230.0,0.105933]
[1730199438806,0.3616,71239.0,71238.0,0.070225]
[1730199439100,0.43115271,71239.0,71238.0,0.13214877]
[1730199439289,0.43115271,71239.0,71238.0,0.55326877]
[1730199439700,0.07035271,71239.0,71238.0,0.91406877]
[1730199439904,0.07035271,71239.0,71238.0,0.3608]
[1730199440100,0.070227,71236.0,71235.0,0.070228]
[1730199440499,0.07035571,71236.0,71235.0,0.070228]
[1730199441801,0.07135571,71236.0,71235.0,0.075228]
[1730199442001,0.07535571,71236.0,71235.0,0.075228]
[1730199442706,0.07535571,71236.0,71235.0,0.005]
[1730199444804,0.07535571,71236.0,71235.0,0.075228]
[1730199445706,0.07535571,71236.0,71235.0,0.005]
[1730199447108,0.07535571,71236.0,71235.0,0.075228]
[1730199447701,0.07535571,71236.0,71235.0,0.005]
[1730199449298,0.07535571,71236.0,71235.0,0.10250997]
[1730199449907,0.43615571,71236.0,71235.0,0.10250997]
[1730199450302,0.43615571,71236.0,71235.0,0.17263841]
[1730199450501,0.43615571,71236.0,71235.0,0.005]
[1730199451202,0.43615571,71236.0,71235.0,0.17277551]
[1730199452907,0.43615571,71236.0,71235.0,0.005]
[1730199454305,0.85727571,71236.0,71235.0,0.005]
[1730199456810,0.85727571,71236.0,71235.0,0.06111502]
[1730199457213,0.91919948,71236.0,71235.0,2e-08]
[1730199457516,0.070247,71216.0,71214.0,0.031]
[1730199457813,0.07037571,71216.0,71214.0,0.031]
[1730199458900,0.07137571,71216.0,71215.0,0.00710604]
[1730199459607,0.07237571,71216.0,71215.0,0.01010604]
[1730199464422,0.07237571,71216.0,71215.0,0.10769139]
[1730199465104,0.00212871,71216.0,71215.0,0.19175263]
[1730199465309,0.07237571,71216.0,71215.0,0.19175263]
[1730199465509,0.07237571,71216.0,71215.0,0.10769139]
[1730199468611,0.07237571,71216.0,71215.0,0.17769423]
[1730199469018,0.07237571,71216.0,71215.0,0.17742647]
[1730199471517,0.07237571,71216.0,71215.0,0.08010888]
[1730199472320,0.07237571,71216.0,71215.0,0.17743735]
[1730199472517,0.07237571,71216.0,71215.0,0.01010604]
[1730199480630,0.07237571,71216.0,71215.0,0.05211308]
[1730199481532,0.07237571,71216.0,71215.0,0.01010604]
[1730199481825,0.07237571,71216.0,71215.0,0.05218345]
[1730199482222,0.07237571,71216.0,71215.0,0.01010604]
[1730199483934,0.13429948,71216.0,71215.0,0.01010604]
[1730199486850,0.13429948,71216.0,71215.0,0.008]
[1730199487538,0.16870656,71216.0,71215.0,0.008]
[1730199491844,0.21183351,71216.0,71215.0,0.008]
[1730199492345,0.16870656,71216.0,71215.0,0.008]
[1730199492847,0.21183351,71216.0,71215.0,0.008]
[1730199493944,0.14990974,71216.0,71215.0,0.008]
[1730199494151,0.21183351,71216.0,71215.0,0.008]
[1730199494548,0.13429948,71216.0,71215.0,0.008]
[1730199502647,0.16870665,71216.0,71215.0,0.008]
[1730199504258,0.10678288,71216.0,71215.0,0.008]
[1730199504758,0.21183355,71216.0,71215.0,0.008]
[1730199505559,0.16870665,71216.0,71215.0,0.008]
[1730199509055,0.10678288,71216.0,71215.0,0.008]
[1730199509765,0.07237571,71216.0,71215.0,0.008]
[1730199524371,0.07237571,71216.0,71215.0,0.078248]
[1730199524564,0.10678117,71216.0,71215.0,0.078248]
[1730199529173,0.10678061,71216.0,71215.0,0.078248]
[1730199529472,0.10678061,71216.0,71215.0,0.14017177]
[1730199530274,0.10678061,71216.0,71215.0,0.078248]
[1730199530574,0.16870438,71216.0,71215.0,0.008]
[1730199531579,0.13429948,71216.0,71215.0,0.008]
[1730199532481,0.13429948,71216.0,71215.0,0.10605446]
[1730199534775,0.07237571,71216.0,71215.0,0.10605446]
[1730199535170,0.00212871,71216.0,71215.0,0.10605446]
[1730199536078,0.00212871,71216.0,71215.0,0.17630246]
[1730199536265,0.00212871,71216.0,71215.0,0.24655969]
[1730199539570,0.00212871,71216.0,71215.0,0.078248]
[1730199540277,0.07965757,71216.0,71215.0,0.078248]
[1730199540674,0.070949,71235.0,71215.0,0.47723424]
[1730199540874,0.00012871,71236.0,71235.0,0.070228]
[1730199541074,0.00012871,71236.0,71222.0,0.3608]
[1730199541075,0.38634267,71236.0,71222.0,0.3608]
[1730199541275,0.070232,71232.0,71224.0,0.0333]
[1730199541471,0.070233,71230.0,71227.0,0.070236]
[1730199541672,0.070233,71230.0,71224.0,0.0333]
[1730199541673,0.070236,71228.0,71225.0,0.070238]
[1730199541881,0.06192377,71226.0,71225.0,0.070238]
[1730199542085,0.06205232,71226.0,71225.0,0.070238]
[1730199543176,0.06305232,71226.0,71225.0,0.074238]
[1730199543684,0.06305232,71226.0,71225.0,0.075238]
[1730199543685,0.06405232,71226.0,71225.0,0.075238]
[1730199555184,0.1415695,71226.0,71225.0,0.075238]
[1730199555779,0.09845193,71226.0,71225.0,0.075238]
[1730199557188,0.06405232,71226.0,71225.0,0.075238]
[1730199560295,0.09845193,71226.0,71225.0,0.075238]
[1730199560480,0.06405232,71226.0,71225.0,0.075238]
[1730199561684,0.13428932,71226.0,71225.0,0.075238]
[1730199563994,0.19621309,71226.0,71225.0,0.005]
[1730199564392,0.34803309,71226.0,71225.0,0.005]
[1730199564690,0.76923309,71226.0,71225.0,0.005]
[1730199564996,0.64538555,71226.0,71225.0,0.005]
[1730199565288,0.22418555,71226.0,71225.0,0.005]
[1730199565484,0.28610932,71226.0,71225.0,0.005]
[1730199565691,0.19478932,71226.0,71225.0,0.005]
[1730199566391,0.19478932,71226.0,71225.0,0.0470867]
[1730199567686,0.19478932,71226.0,71225.0,0.005]
[1730199574401,0.25671309,71226.0,71225.0,0.005]
[1730199574603,0.19478932,71226.0,71225.0,0.005]
[1730199574799,0.25671309,71226.0,71225.0,0.005]
[1730199576800,0.33424108,71226.0,71225.0,0.005]
[1730199577099,0.29111749,71226.0,71225.0,0.005]
[1730199579513,0.33424123,71226.0,71225.0,0.005]
[1730199581504,0.29111749,71226.0,71225.0,0.005]
[1730199582407,0.65191749,71226.0,71225.0,0.005]
[1730199583101,0.69504244,71226.0,71225.0,0.005]
[1730199583494,0.65191749,71226.0,71225.0,0.005]
[1730199583895,0.65191818,71226.0,71225.0,0.005]
[1730199584702,0.29111818,71226.0,71225.0,0.005]
[1730199584902,0.61751309,71226.0,71225.0,0.005]
[1730199587714,0.49366555,71226.0,71225.0,0.005]
[1730199588009,0.49366555,71226.0,71225.0,0.04710478]
[1730199588010,0.52538932,71226.0,71225.0,0.04710478]
[1730199588215,0.58731309,71226.0,71225.0,0.04710478]
[1730199588602,0.58731309,71226.0,71225.0,0.005]
[1730199592520,0.58731309,71226.0,71225.0,0.04712597]
[1730199593213,0.58731309,71226.0,71225.0,0.005]
[1730199593414,0.55701309,71226.0,71225.0,0.04713512]
[1730199593720,0.55701309,71226.0,71225.0,0.005]
[1730199599915,0.27374233,71226.0,71225.0,0.005]
[1730199600125,0.63454233,71226.0,71225.0,0.005]
[1730199600422,0.070248,71215.0,71214.0,0.0306]
[1730199600611,0.070256,71207.0,71206.0,0.0317]
[1730199600813,0.11338917,71207.0,71206.0,0.0317]
[1730199601120,0.25803328,71207.0,71206.0,0.0317]
[1730199601619,0.25803328,71207.0,71206.0,0.0962]
[1730199602118,0.16671328,71207.0,71206.0,0.0962]
[1730199602316,0.16771328,71207.0,71206.0,0.0972]
[1730199602517,0.16871328,71207.0,71206.0,0.1012]
[1730199602722,0.07966303,71207.0,71206.0,0.171457]
[1730199602928,0.1415868,71207.0,71206.0,0.171457]
[1730199603315,0.2118428,71207.0,71206.0,0.171457]
[1730199603920,0.2118428,71207.0,71206.0,0.1012]
[1730199604318,0.2118428,71207.0,71206.0,0.005]
[1730199604319,0.211845,71207.0,71206.0,0.005]
[1730199604517,0.211845,71207.0,71197.0,0.3608]
[1730199604518,0.070265,71198.0,71197.0,0.3608]
[1730199604816,0.13231732,71198.0,71197.0,0.3608]
[1730199605021,0.209854,71198.0,71197.0,0.3608]
[1730199605520,0.16672228,71198.0,71197.0,0.3608]
[1730199605731,0.2098587,71198.0,71197.0,0.3608]
[1730199606223,0.16872228,71198.0,71197.0,0.3608]
[1730199606926,0.13431732,71198.0,71197.0,0.3608]
[1730199609122,0.13431732,71198.0,71197.0,0.41688201]
[1730199613029,0.070267,71196.0,71195.0,0.05608201]
[1730199613230,0.13219077,71196.0,71195.0,0.05608201]
[1730199614834,0.13319077,71196.0,71195.0,0.05608201]
[1730199615037,0.070269,71194.0,71193.0,0.07027]
[1730199615548,0.070269,71194.0,71193.0,0.13219377]
[1730199616144,0.070269,71194.0,71193.0,0.07027]
[1730199616542,0.072269,71194.0,71193.0,0.07027]
[1730199616946,0.10668494,71194.0,71193.0,0.07027]
[1730199617346,0.03641594,71194.0,71193.0,0.55359377]